Cogmind - Beta 12 @@@ ROGUE MODE // 2023.05.28 @ 07:46:09 Player: youngster Result: Destroyed by G-47 Trooper with Particle Gun Performance ------------- Evolutions (2) 1000 Regions Visited (6) 1200 Robots Destroyed (91) 455 Value Destroyed (2146) 2146 Prototype IDs (9) 180 Alien Tech Used (0) 0 Bonus (-18) -18 TOTAL SCORE: 4963 Bonus ------- Friendly Fire -18 Cogmind --------- Core Integrity 0/550 Matter 130/300 Energy 85/160 System Corruption 0% Temperature Cool (75) Movement Flying (29) Location -8/Storage Parts ------- > --- POWER (1) -------- Light Nuclear Core > --- PROPULSION (4) --- Improved VTOL Module Improved VTOL Module Improved VTOL Module > --- UTILITY (4) ------ Improved Light Armor Plating Hacking Suite > --- WEAPON (2) ------- Maul > --- INVENTORY (5) ---- Advanced Visual Processing Unit Improved Signal Interpreter Improved EM Pulse Cannon Plasma Cutter Spear Peak State ------------ > --- POWER ------------ Deuterium Engine > --- PROPULSION ------- Light Treads Light Treads Armored Treads Advanced Treads > --- UTILITY ---------- Huge Storage Unit Seismic Detector Improved Targeting Computer Hacking Suite > --- WEAPON ----------- Improved EM Pulse Cannon Improved EM Pulse Cannon > --- INVENTORY -------- Improved Ion Engine Light Nuclear Core Light Nuclear Core Light Treads Armored Treads Improved VTOL Module Improved VTOL Module Improved VTOL Module Improved VTOL Module Improved VTOL Module Improved VTOL Module High-capacity Matter Pod Advanced Visual Processing Unit Experimental Sensor Array Improved Signal Interpreter Improved Light Armor Plating Improved Medium Laser Heavy Assault Rifle Autogun Autogun Autogun Rocket Launcher Plasma Cutter Maul Spear [Rating: 33] Favorites ----------- Power Ion Engine Engine Ion Engine Power Core Light Nuclear Core Propulsion Light Treads Treads Light Treads Wheel Compact Wheel Flight Unit Improved VTOL Module Utility Seismic Detector Device Seismic Detector Storage Huge Storage Unit Processor Improved Targeting Computer Hackware Hacking Suite Protection Light Armor Plating Weapon Improved Medium Laser Energy Gun Improved Medium Laser Energy Cannon Improved EM Pulse Cannon Ballistic Gun Autogun Launcher Rocket Launcher Impact Weapon Maul Build | -11 -10 -10 -10 -9 -8 -8 ------- Run | Jun Mat Min Exi Min Mat Sto Slots Evolved 4 | . . . . . 4 . Power . | . . . . . . . Propulsion 2 | . . . . . 2 . Utility 2 | . . . . . 2 . Weapon . | . . . . . . . Parts Attached 102 | 6 13 . 2 4 54 23 Power 9 | 1 1 . . . 4 3 Engine 7 | 1 1 . . . 3 2 Core 2 | . . . . . 1 1 Reactor . | . . . . . . . Propulsion 30 | 2 5 . . 2 16 5 Treads 20 | 2 3 . . 1 14 . Leg . | . . . . . . . Wheel 4 | . 2 . . 1 1 . Hover . | . . . . . . . Flight 6 | . . . . . 1 5 Utility 17 | 1 3 . . . 12 1 Device 3 | . 1 . . . 2 . Storage 3 | 1 2 . . . . . Processor 1 | . . . . . 1 . Hackware 1 | . . . . . 1 . Protection 9 | . . . . . 8 1 Artifact . | . . . . . . . Weapon 46 | 2 4 . 2 2 22 14 Energy Gun 10 | . 3 . . . 7 . Energy Cannon 3 | . . . . . . 3 Ballistic Gun 17 | 2 1 . 2 1 6 5 Ballistic Cannon . | . . . . . . . Launcher 13 | . . . . 1 8 4 Special Weapon . | . . . . . . . Impact Weapon 3 | . . . . . 1 2 Slashing Weapon . | . . . . . . . Piercing Weapon . | . . . . . . . Special Melee Weapon . | . . . . . . . Unidentified Prototypes 3 | . 1 . . . 2 . Parts Lost 20 | . . . . . 9 11 Power 3 | . . . . . 2 1 Propulsion 9 | . . . . . 3 6 Utility 4 | . . . . . 2 2 Weapon 4 | . . . . . 2 2 Highest Loss Streak 11 | . . . . . 3 11 To Critical Strikes . | . . . . . . . Average Slot Usage (%) 98 | . 98 100 100 100 97 98 Engine 10 | . 14 14 14 14 8 8 Treads 28 | . 23 14 14 14 34 34 Wheel 4 | . 4 14 14 13 1 . Device 10 | . 12 14 14 14 7 8 Storage 10 | . 14 14 14 14 9 8 Processor 4 | . . . . . 6 8 Hackware 3 | . . . . . 5 9 Protection 2 | . . . . . 4 . Energy Gun 13 | . 27 28 27 . 9 . Ballistic Gun 8 | . . . . 27 8 9 Naked Turns . | . . . . . . . Heaviest Build 104 | 14 92 92 92 93 102 104 Greatest Support 82 | 40 40 16 16 16 82 82 Greatest Overweight (x) 6 | . 5 5 5 5 6 1 Average Overweight (x) 2 | . 1 5 5 5 1 . Largest Inventory Capacity 25 | 8 25 25 25 25 25 25 Average Capacity 22 | 7 14 25 25 25 25 24 Most Carried 25 | 4 16 16 21 24 25 25 Average Carried 20 | 2 9 16 19 22 24 24 Final Capacity 25 | 8 25 25 25 25 25 5 Final Carried 25 | 4 16 16 21 24 25 5 Class Distribution -------------------- 62% | Mutant 37% | Scavenger-Mutant Dominant Class ---------------- Mutant | -10/Materials Mutant | -10/Mines Mutant | -10/Exiles Mutant | -9/Mines Scavenger-Mutant | -8/Materials Mutant | -8/Storage Resources | -11 -10 -10 -10 -9 -8 -8 ----------- Run | Jun Mat Min Exi Min Mat Sto Matter Collected 1682 | 252 177 . . 234 877 142 Remotely . | . . . . . . . Salvage Created 3262 | 109 586 . . 421 1864 282 Parts 189 | 10 34 . . 26 97 22 Haulers Intercepted 7 | . 1 . . . 6 . Recyclers Shooed 5 | . 2 . . 1 2 . Parts Field Recycled . | . . . . . . . Retrieved Matter . | . . . . . . . Parts Self-Destructed . | . . . . . . . Prevented . | . . . . . . . Kills | -11 -10 -10 -10 -9 -8 -8 ------- Run | Jun Mat Min Exi Min Mat Sto Combat Hostiles Destroyed 63 | . 10 . . 13 33 7 Guns 44 | . 10 . . 10 23 1 AOE 17 | . . . . 3 9 5 Classes Destroyed 13 | 2 4 . . 1 6 . Worker 8 | . . . . . 8 . Builder 1 | . . . . . 1 . Tunneler 3 | 2 . . . 1 . . Hauler 7 | . 1 . . . 6 . Recycler 8 | 1 2 . . 2 2 1 Watcher 5 | . 2 . . . 2 1 Swarmer 21 | . 3 . . 7 8 3 Grunt 23 | . 7 . . 2 14 . Brawler 1 | . . . . . 1 . Duelist 2 | . . . . . 1 1 Sentry 10 | . . . . . 8 2 Hunter 2 | . . . . . 1 1 Assembled 4 | . . . . 4 . . Best Kill Streak 7 | 2 3 . . 4 7 4 Combat Bots Only 5 | . 3 . . 4 5 4 Max Kills in Single Turn 4 | 1 1 . . 3 4 2 Gunslinging . | . . . . . . . Exploded 3 | . . . . 3 3 2 Melee . | . . . . . . . Uniques/NPCs Destroyed . | . . . . . . . Combat | -11 -10 -10 -10 -9 -8 -8 -------- Run | Jun Mat Min Exi Min Mat Sto Damage Taken 4682 | . 342 75 . 308 2303 1654 Core 685 | . 68 29 . 38 275 275 Absorbed by Shields . | . . . . . . . Regen/Repaired (Parts) 136 | . 65 . . . 71 . Core Remaining (%) 73 | 100 . . . 46 . . Volleys Fired 193 | 6 40 . . 21 110 16 Largest 2 | 2 2 . . 2 2 2 Hottest 138 | 40 112 . . 46 96 138 Shots Fired 369 | 12 80 . . 40 213 24 Gun 340 | 12 80 . . 38 202 8 Cannon 8 | . . . . . . 8 Launcher 21 | . . . . 2 11 8 Special . | . . . . . . . Kinetic 151 | 12 4 . . 38 89 8 Thermal 139 | . 76 . . . 63 . Explosive 21 | . . . . 2 11 8 Electromagnetic 58 | . . . . . 50 8 Robot Hit Streak 20 | 4 7 . . 12 20 10 Robot Miss Streak 3 | 2 3 . . 2 2 1 Penetration Max . | . . . . . . . Secondary Targets 4 | . . . . . 4 . Max Gunslinging Chain 1 | . . . . . 1 . Shots Hit Robots 257 | 6 46 . . 24 163 18 Core Hits 145 | 3 18 . . 20 87 17 Critical Kills . | . . . . . . . Critical Parts Destroyed 2 | . . . . . 1 1 Critical Strikes 17 | . 4 . . . 12 1 Burn 13 | . 4 . . . 9 . Destroy 1 | . . . . . 1 . Corrupt 2 | . . . . . 2 . Smash 1 | . . . . . . 1 Melee Attacks 3 | . . . . . 1 2 Impact 3 | . . . . . 1 2 Slashing . | . . . . . . . Piercing . | . . . . . . . Sneak Attacks . | . . . . . . . Combat Hostiles . | . . . . . . . Follow-up Attacks . | . . . . . . . Damage Inflicted 6093 | 85 812 . . 509 3667 1020 Guns 3719 | 79 804 . . 351 2373 112 Cannons 180 | . . . . . . 180 Explosions 2095 | . . . . 147 1246 702 Melee 26 | . . . . . . 26 Ramming 73 | 6 8 . . 11 48 . Kinetic 1514 | 79 21 . . 351 951 112 Thermal 1776 | . 783 . . . 950 43 Explosive 1971 | . . . . 147 1165 659 Electromagnetic 733 | . . . . . 553 180 Impact 26 | . . . . . . 26 Slashing . | . . . . . . . Piercing . | . . . . . . . Highest Corruption . | . . . . . . . Average Corruption . | . . . . . . . Corruption Purged . | . . . . . . . Corruption Blocked . | . . . . . . . Overload Shots . | . . . . . . . Overflow Damage 69 | . . . . . 30 39 Projectiles . | . . . . . . . Explosions 43 | . . . . . 30 13 Melee 26 | . . . . . . 26 Knockbacks 1 | . . . . . 1 . Impact 1 | . . . . . 1 . Kinetic . | . . . . . . . Secondary . | . . . . . . . Self-Inflicted Damage 134 | . . . . 33 78 23 Shots 5 | . . . . 1 3 1 Rammed 11 | 1 2 . . 1 7 . Targets Rammed 12 | 1 2 . . 1 8 . Kicked . | . . . . . . . Crushed 1 | . . . . . 1 . Highest Temperature 306 | . 306 . . 38 150 126 Average Temperature 61 | . 103 . . 9 43 41 Received Heat Transfer 1944 | . 135 42 . 66 891 810 Effects 5 | . 5 . . . . . Energy Bleed 2 | . 2 . . . . . Interference 3 | . 3 . . . . . Siege Activations . | . . . . . . . Robots Corrupted 2 | . . . . . 1 1 Combat Hostiles 2 | . . . . . 1 1 Parts Fried 7 | . . . . . 3 4 Impact Corruptions 2 | . . . . . . 2 Robots Melted . | . . . . . . . Combat Hostiles . | . . . . . . . Parts Melted 9 | . 3 . . . 6 . Heat Transferred 4701 | . 1998 . . . 2653 50 Parts Sabotaged . | . . . . . . . Parts Stolen . | . . . . . . . Parts Stripped . | . . . . . . . Power Chain Reactions 2 | . . . . . 1 1 Missiles Intercepted . | . . . . . . . Alert | -11 -10 -10 -10 -9 -8 -8 ------- Run | Jun Mat Min Exi Min Mat Sto Peak Influence 352 | 15 155 33 . 230 352 224 Initial 144 | . 9 33 . . . 144 Average 112 | 8 42 33 . 86 147 148 Maximum Alert Level 1 | . . . . 1 1 1 Low Security (%) 82 | 100 100 100 . 80 73 97 Level 1 17 | . . . . 19 26 2 Level 2 . | . . . . . . . Level 3 . | . . . . . . . Level 4 . | . . . . . . . Level 5 . | . . . . . . . High Security . | . . . . . . . Max Security . | . . . . . . . Squads Dispatched 8 | . 1 . . . 4 3 Investigation 1 | . . . . . . 1 Extermination . | . . . . . . . Reinforcement 5 | . 1 . . . 4 . Assault 2 | . . . . . . 2 Garrison . | . . . . . . . Intercept . | . . . . . . . Searches Triggered . | . . . . . . . Construction Impeded 1 | . . . . . 1 . Haulers Reinforced . | . . . . . . . Active Scanning Responses . | . . . . . . . Cargo Convoy Interrupts . | . . . . . . . Stealth | -11 -10 -10 -10 -9 -8 -8 --------- Run | Jun Mat Min Exi Min Mat Sto Distress Signals 13 | . 1 . . . 11 1 Communications Jammed . | . . . . . . . Distress Signals . | . . . . . . . Times Spotted 120 | . 22 2 . 19 58 19 Peak Tracking Total 12 | . 3 2 . 12 8 8 Tactical Retreats 6 | . 1 . . 1 4 . Traps | -11 -10 -10 -10 -9 -8 -8 ------- Run | Jun Mat Min Exi Min Mat Sto Traps Triggered 1 | . 1 . . . . . Indirectly . | . . . . . . . Trap Hack Attempts . | . . . . . . . Triggered . | . . . . . . . Disarmed . | . . . . . . . Reprogrammed . | . . . . . . . Reused . | . . . . . . . Traps Extracted . | . . . . . . . Installed . | . . . . . . . Triggered 1 | . . . . 1 . . Exploded 2 | . . . . . 2 . Machines | -11 -10 -10 -10 -9 -8 -8 ---------- Run | Jun Mat Min Exi Min Mat Sto Machines Disabled 4 | . . . . . 2 2 Max in Single Turn 1 | . . . . . 1 1 Garrison Access 1 | . . . . . 1 . Machines Repaired . | . . . . . . . Machines Sabotaged . | . . . . . . . Overloaded Fab Kills . | . . . . . . . Hacking | -11 -10 -10 -10 -9 -8 -8 --------- Run | Jun Mat Min Exi Min Mat Sto Machines Accessed 24 | . 6 . 1 . 13 4 Terminals 17 | . 5 . . . 8 4 Fabricators . | . . . . . . . Repair Stations 3 | . 1 . . . 2 . Recycling Units . | . . . . . . . Scanalyzers 2 | . . . . . 2 . Garrison Access 1 | . . . . . 1 . Total Hacks 69 | . 16 . 1 . 43 9 Successful 38 | . 8 . 1 . 24 5 Failed 30 | . 7 . . . 19 4 Catastrophic 2 | . . . . . 2 . Database Lockouts 1 | . 1 . . . . . Manual 34 | . 12 . . . 20 2 Terminals 48 | . 14 . . . 25 9 Fabricators . | . . . . . . . Repair Stations 10 | . 2 . . . 8 . Recycling Units . | . . . . . . . Scanalyzers 9 | . . . . . 9 . Garrison Access 1 | . . . . . 1 . Terminal Hacks 13 | . 3 . 1 . 5 4 Record 1 | . . . 1 . . . Part Schematic 2 | . 1 . . . . 1 Prototype ID Bank 2 | . . . . . 1 1 Terminal Index 1 | . 1 . . . . . Repair Station Index 1 | . . . . . 1 . Unreport Threat 3 | . . . . . 2 1 Locate Traps 3 | . 1 . . . 1 1 Fabricator Hacks . | . . . . . . . Repair Station Hacks 7 | . 2 . . . 5 . Scan Component 4 | . 1 . . . 3 . Repair 3 | . 1 . . . 2 . Recycling Unit Hacks . | . . . . . . . Scanalyzer 7 | . . . . . 7 . Insert Component 2 | . . . . . 2 . Analyze 5 | . . . . . 5 . Garrison Access Hacks 1 | . . . . . 1 . Seal Access 1 | . . . . . 1 . Unauthorized Hacks 10 | . 3 . . . 6 1 Terminals 10 | . 3 . . . 6 1 Assimilate 2 | . 1 . . . 1 . Botnet 4 | . 1 . . . 3 . Operators 4 | . 1 . . . 2 1 Fabricators . | . . . . . . . Repair Stations . | . . . . . . . Recycling Units . | . . . . . . . Scanalyzers . | . . . . . . . Garrison Access . | . . . . . . . Data Cores Recovered . | . . . . . . . Used . | . . . . . . . Hacking Detections 19 | . 6 . . . 9 4 Full Trace Events 2 | . . . . . 1 1 Feedback Events . | . . . . . . . Feedback Blocked . | . . . . . . . Robot Schematics Acquired . | . . . . . . . Robots Built . | . . . . . . . Authchips . | . . . . . . . Time . | . . . . . . . Total Robot Build Rating . | . . . . . . . Part Schematics Acquired 4 | . 1 . . . 2 1 Parts Built . | . . . . . . . Authchips . | . . . . . . . Time . | . . . . . . . Total Part Build Rating . | . . . . . . . Parts Repaired 3 | . 1 . . . 2 . Time 187 | . 13 . . . 174 . Parts Recycled . | . . . . . . . Recycled Matter . | . . . . . . . Retrieved Matter . | . . . . . . . Retrieved Components . | . . . . . . . Parts Scanalyzed 2 | . . . . . 2 . Part Schematics Acquired 2 | . . . . . 2 . Parts Damaged 1 | . . . . . 1 . Bothacking | -11 -10 -10 -10 -9 -8 -8 ------------ Run | Jun Mat Min Exi Min Mat Sto Used RIF Installer . | . . . . . . . Robots Hacked . | . . . . . . . Non-combat . | . . . . . . . Combat . | . . . . . . . Robot Hacks Applied . | . . . . . . . Relay Couplers Released . | . . . . . . . Fabnet Peak Effective % . | . . . . . . . Robots Rewired . | . . . . . . . Allies Hacked . | . . . . . . . Hacks Repelled . | . . . . . . . Allies | -11 -10 -10 -10 -9 -8 -8 -------- Run | Jun Mat Min Exi Min Mat Sto Total Allies 5 | . 1 . . 2 . 2 Largest Group 2 | . 1 . . 2 . 2 Highest-Rated Group 62 | . 10 . . 43 . 62 Highest-Rated Ally 31 | . 10 . . 31 . 31 Total Orders 5 | . 5 . . . . . STAY 3 | . 3 . . . . . FOLLOW 2 | . 2 . . . . . Ally Attacks 23 | . . . . 7 . 16 Total Damage 295 | . . . . 85 . 210 Kills 2 | . . . . 2 . . Allies Corrupted . | . . . . . . . Allies Melted 1 | . . . . . . 1 Intel | -11 -10 -10 -10 -9 -8 -8 ------- Run | Jun Mat Min Exi Min Mat Sto Robot Analysis Total . | . . . . . . . Derelict Logs Recovered 2 | . . 1 . 1 . . Drone Launches . | . . . . . . . Drone Recoveries . | . . . . . . . Exploration | -11 -10 -10 -10 -9 -8 -8 ------------- Run | Jun Mat Min Exi Min Mat Sto Turns Passed 8395 | 200 1504 324 448 943 4516 460 Spaces Moved 3292 | 103 592 186 252 495 1504 160 Core 1 | 1 . . . . . . Treads 1871 | 102 390 . . . 1224 155 Legs . | . . . . . . . Wheels 1415 | . 202 186 252 495 280 . Hover . | . . . . . . . Flight 5 | . . . . . . 5 Fastest Speed 26 | 50 160 175 175 175 175 26 Average Speed 199 | 158 165 175 175 175 226 231 Slowest Speed 243 | 160 175 175 175 175 243 238 Overloaded Moves . | . . . . . . . Propulsion Burnouts . | . . . . . . . Robots Hopped . | . . . . . . . Cave-ins Triggered . | . . . . . . . Exploration Rate (%) 57 | 6 79 48 61 86 91 34 Regions Visited 6 Branch Regions 4 Pre-discovered Areas 2 | . . 1 1 . . . Known Exits Taken . | . . . . . . . Unknown Exits Taken 6 | 1 1 1 1 1 1 . Scrap Searched 2 | . . . . 2 . . Spaces Dug 36 | . . . . 26 1 9 Terrain Destroyed 141 | . . . . 26 50 65 Melee 1 | . . . . . 1 . Projectile . | . . . . . . . AOE 140 | . . . . 26 49 65 Terrain Rammed . | . . . . . . . Walls Destroyed . | . . . . . . . Machines Disabled . | . . . . . . . Actions | -11 -10 -10 -10 -9 -8 -8 --------- Run | Jun Mat Min Exi Min Mat Sto Total 4759 | 124 1037 185 258 537 2399 219 Wait 1047 | 3 372 . . 14 651 7 Move 3287 | 103 591 185 251 494 1503 160 Hop . | . . . . . . . Pick Up 63 | 5 12 . 5 3 34 4 Fast Attach 16 | 6 4 . . . 6 . Attach 20 | . 1 . . . 11 8 Detach 4 | . 2 . . . 2 . Swap 66 | . 8 . 2 4 37 15 Drop 49 | 1 5 . . . 36 7 Fire 193 | 6 40 . . 21 110 16 Melee 3 | . . . . . 1 2 Ram 1 | . . . . 1 . . Kick . | . . . . . . . Crush 10 | . 2 . . . 8 . Escape Stasis . | . . . . . . . Rewire . | . . . . . . . Trap . | . . . . . . . Miscellaneous . | . . . . . . . Route ------- -11/Junkyard -10/Materials (discovered 2 exits: [*Mat] / [*Min]) -10/Mines -10/Exiles -9/Mines -8/Materials (discovered 4 exits: *Fac x3 / *Sto) -8/Storage History --------- Turn | Location | Event 37 | -11/Junkyard | Discovered new exit (range 15) 201 | -11/Junkyard | Entered Materials 310 | -10/Materials | Build established: Mutant 326 | -10/Materials | Discovered new exit (range 9) 727 | -10/Materials | Central database locked down 1292 | -10/Materials | Discovered new exit (range 10) 1668 | -10/Materials | Repaired Lgt. Treads 1705 | -10/Materials | Entered Mines 1863 | -10/Mines | Learned location of Storage (-8) 2020 | -10/Mines | Deemed a non-threat by the Exiles lab entrance 2022 | -10/Mines | Discovered new exit (range 5) 2029 | -10/Mines | Entered Exiles 2134 | -10/Exiles | Met 8R-AWN 2158 | -10/Exiles | Met EX-HEX 2248 | -10/Exiles | Met EX-DEC 2282 | -10/Exiles | Visited The Gauntlet 2367 | -10/Exiles | Learned location of Zion (-6) 2453 | -10/Exiles | Discovered new exit (range 14) 2477 | -10/Exiles | Entered Mines 2579 | -9/Mines | Found a damaged Exp. Sensor Array with a note attached 2583 | -9/Mines | Found Prototype Device 2694 | -9/Mines | Core integrity fell below 50% 2720 | -9/Mines | Discovered new exit (range 7) 3244 | -9/Mines | Assembled infested the area 3249 | -9/Mines | Assisted by a Guerilla fighting off Assembled 3420 | -9/Mines | Entered Materials 3420 | -8/Materials | Evolved 4 slots: Propulsion x2, Utility x2 3421 | -8/Materials | Identified exit to Factory 3472 | -8/Materials | Discovered new exit (range 13) 4033 | -8/Materials | Lost 3 parts (1p2n) 4289 | -8/Materials | Build established: Scavenger-Mutant 4598 | -8/Materials | Discovered exit to Factory (range 15) 5291 | -8/Materials | Identified Exp. Sensor Array 7004 | -8/Materials | Discovered exit to Factory (range 16) 7233 | -8/Materials | Build established: Mutant 7841 | -8/Materials | Repaired Broken Exp. Sensor Array 7885 | -8/Materials | Repaired Imp. Light Armor Plating 7936 | -8/Materials | Entered Storage 8312 | -8/Storage | Met a pair of Derelict thieves 8344 | -8/Storage | Core integrity fell below 50% 8383 | -8/Storage | Core integrity fell below 20% 8396 | -8/Storage | Destroyed by G-47 Trooper with Particle Gun Last Messages --------------- 08378_ Critical hit (Burn: +37). 08379_ Destroyed Wheel. 08379_ K-01 Serf collects debris. 08380_ The unstable cave ceiling collapses. 08380_ Rocket Launcher destroyed. 08382_ M-28 Smith suffers critical hit (Burn). 08382_ M-28 Smith destroyed. 08386_ Lgt. Treads destroyed. 08387_ Imp. VTOL Module destroyed. 08388_ Seismic Detector destroyed. 08388_ Critical hit (Burn: +37). 08389_ Dropped Huge Storage Unit. 08390_ Dropped Hcp. Matter Pod. 08391_ Acquired Adv. Visual Processing Unit. 08392_ Dropped Hvy. Assault Rifle. 08393_ Acquired Plasma Cutter. 08394_ Dropped Autogun. 08394_ Imp. VTOL Module destroyed. 08395_ The unstable cave ceiling collapses. 08395_ Acquired Imp. Signal Interpreter. Map ----- +----------------------------------------------------+ | | | | | | | | | | | | | | | | | | | | | | | | | | | | | | | | | | | | | | | | | ????????????# ### ???????????????????????????????? | | ???????????## ########???????????####?####?? | | ???????????# # [! ####????????# # !!#?? | | ???????????# %[[= ########## " ! #?# | | ????????? Yg=!*! g # !#?# | | ????????? [ [[ g*@] g + " #?# | | ?????????? [ g ! g%m ] ##T# !! #?# | | ??????????## % # ########## %*####?! !#?# | | ??????????? # " # ?# # !%#????####?# | | ?????????????## # [[ ?? # #?????????# | | ??????????????# ?# [[ # """" # #?????????# | | ??????????????# ??# [[ # """" # #?????????# | | ??????????????#???# # """" + #???####### | | ??????????????????+ "" """ # """" # ##### % | | ????????????????? # "T """ # # + "" | | ???????????????? # "" """ # """" # ##### ""* | | ???????????????? ???? ??? # """" # #???# """% | | ?????????????????????###???## """" ## ##???# "!%" | | ????????????????????????????# """" ## #????# "==" | | ??????????????????????????????? ## #????# """" | | ???????????????????????????????? ## #????# | | ????????????????????????????????##### #????####### | | ???????????????????????????????????? ?????? | | ????????????????????????????????????###?????# "" | | ????????????????????????????????????????????# "" | | ????????????????????????????????????????????# "" | | ????????????????????????????????????????????# | | ????????????????????????????????????????????# "" | | ????????????????????????????????????????????# "" | | ????????????????????????????????????????????# "" | +----------------------------------------------------+ Best States ------------- Heat Dissipation 31 Energy Generation 14 Energy Capacity 275 Matter Stores 300 Matter Capacity 300 Sight Range 16 Terrain Scan Density 10 Armor Coverage 375 Resistance: EM 20 Evasion (%) 40 Targeting Accuracy 6 Recoil Reduction 4 Offensive Hacking 10 Item Schematics ----------------- Seismic Detector | -10/Materials | Hacked Exp. Sensor Array | -8/Materials | Scanalyzed Imp. Light Armor Plating | -8/Materials | Scanalyzed Imp. Hacking Suite | -8/Storage | Hacked Robot Schematics ------------------ None Fabricated ------------ Nothing Alien Tech Used ----------------- None Achievements -------------- None Challenges ------------ None Game ------ Seed DispersionFusionClaws Manual? 1 Play Time 00:53:38 Cumulative 411.5 hours Start 2023.05.28 @ 06:51:42 End 2023.05.28 @ 07:46:09 Sessions 1 Manual Loads 0 Difficulty Rogue Special Mode None Game No. 180 Rogue 180 Adventurer 0 Explorer 0 Win Type - Total 9 Types 6/0/1/1/0/0/0/1/0 Lore% 89 Gallery% 92 Achievement% 71 Wizard Run 0 Options --------- ASCII 1 Keyboard 1 Movement Vi Keybinds 0 Fullscreen 2 Font 18/Cog Map View 76x50 Tactical HUD 1 Map Filters NONE Filters NONE Steam 0 RUN: fbfdb460-160c-45aa-94f7-a96053724f74